[Event "November 21 Late 2023"]
[Site "https://www.chess.com"]
[Date "2023.11.21"]
[Round "8"]
[White "ciutadella"]
[Black "Bazeev, German"]
[Result "1/2-1/2"]
[Board "41"]
[TimeControl "180+1"]
[BlackFideId "24119350"]
[WhiteElo "2536"]
[BlackElo "2418"]
[BlackTeam "RUS"]
[WhiteClock "0:00:11"]
[BlackClock "0:00:49"]

1. Nf3 {[%clk 0:03:00]}  Nf6 {[%clk 0:03:00]} 2. c4 {[%clk 0:03:00]}  c6 {[%clk 0:03:00]} 3. d4 {[%clk 0:03:00]}  d5 {[%clk 0:03:01]} 4. e3 {[%clk 0:03:00]}  Bf5 {[%clk 0:03:00]} 5. cxd5 {[%clk 0:03:00]}  cxd5 {[%clk 0:02:57]} 6. Nc3 {[%clk 0:03:01]}  Nc6 {[%clk 0:02:52]} 7. Ne5 {[%clk 0:03:01]}  e6 {[%clk 0:02:51]} 8. g4 {[%clk 0:03:01]}  Nxe5 {[%clk 0:02:44]} 9. dxe5 {[%clk 0:02:59]}  Nxg4 {[%clk 0:02:34]} 10. Qa4+ {[%clk 0:02:56]}  Ke7 {[%clk 0:02:30]} 11. Qb4+ {[%clk 0:02:56]}  Kd7 {[%clk 0:02:29]} 12. Qxb7+ {[%clk 0:02:56]}  Qc7 {[%clk 0:02:24]} 13. Bb5+ {[%clk 0:02:55]}  Kd8 {[%clk 0:02:22]} 14. Qxa8+ {[%clk 0:02:54]}  Qc8 {[%clk 0:02:22]} 15. Qxc8+ {[%clk 0:02:52]}  Kxc8 {[%clk 0:02:23]} 16. f4 {[%clk 0:02:44]}  Bc5 {[%clk 0:02:22]} 17. Ke2 {[%clk 0:02:42]}  f6 {[%clk 0:02:22]} 18. h3 {[%clk 0:02:39]}  Nh6 {[%clk 0:02:20]} 19. Bd3 {[%clk 0:02:37]}  fxe5 {[%clk 0:02:19]} 20. Bxf5 {[%clk 0:02:36]}  Nxf5 {[%clk 0:02:20]} 21. Rd1 {[%clk 0:02:16]}  Rf8 {[%clk 0:02:13]} 22. Bd2 {[%clk 0:02:01]}  Kb7 {[%clk 0:02:13]} 23. Rac1 {[%clk 0:01:59]}  Bb6 {[%clk 0:02:12]} 24. Na4 {[%clk 0:01:56]}  Ng3+ {[%clk 0:02:13]} 25. Kf3 {[%clk 0:01:53]}  Ne4 {[%clk 0:02:13]} 26. Nxb6 {[%clk 0:01:51]}  axb6 {[%clk 0:02:14]} 27. Bc3 {[%clk 0:01:40]}  exf4 {[%clk 0:02:11]} 28. exf4 {[%clk 0:01:38]}  g5 {[%clk 0:02:12]} 29. Be5 {[%clk 0:01:35]}  gxf4 {[%clk 0:02:12]} 30. Rc7+ {[%clk 0:01:32]}  Ka6 {[%clk 0:02:13]} 31. a4 {[%clk 0:01:21]}  Ng5+ {[%clk 0:02:08]} 32. Kg4 {[%clk 0:01:15]}  Ne4 {[%clk 0:02:09]} 33. Rf1 {[%clk 0:01:09]}  f3 {[%clk 0:02:07]} 34. Rxf3 {[%clk 0:01:04]}  h5+ {[%clk 0:02:06]} 35. Kxh5 {[%clk 0:00:54]}  Rxf3 {[%clk 0:02:06]} 36. Kg6 {[%clk 0:00:46]}  Rxh3 {[%clk 0:01:38]} 37. b4 {[%clk 0:00:42]}  Rf3 {[%clk 0:01:33]} 38. Rc6 {[%clk 0:00:31]}  Ra3 {[%clk 0:01:20]} 39. a5 {[%clk 0:00:31]}  Nd2 {[%clk 0:01:03]} 40. Rxb6+ {[%clk 0:00:28]}  Ka7 {[%clk 0:01:03]} 41. Bb8+ {[%clk 0:00:18]}  Ka8 {[%clk 0:01:03]} 42. Bc7 {[%clk 0:00:14]}  d4 {[%clk 0:00:54]} 43. a6 {[%clk 0:00:14]}  Nc4 {[%clk 0:00:52]} 44. Rb8+ {[%clk 0:00:13]}  Ka7 {[%clk 0:00:52]} 45. b5 {[%clk 0:00:14]}  d3 {[%clk 0:00:48]} 46. Rb7+ {[%clk 0:00:14]}  Ka8 {[%clk 0:00:48]} 47. Rb8+ {[%clk 0:00:14]}  Ka7 {[%clk 0:00:48]} 48. Rb7+ {[%clk 0:00:12]}  Ka8 {[%clk 0:00:49]} 49. Rb8+ {[%clk 0:00:11]}  Ka7 {[%clk 0:00:49]} 1/2-1/2

[Event "November 21 Late 2023"]
[Site "https://www.chess.com"]
[Date "2023.11.21"]
[Round "8"]
[White "Korchmar, Vasiliy"]
[Black "Della Morte, German"]
[Result "1-0"]
[Board "43"]
[TimeControl "180+1"]
[WhiteFideId "24131750"]
[BlackFideId "113522"]
[WhiteElo "2372"]
[BlackElo "2306"]
[WhiteTeam "RUS"]
[BlackTeam "ARG"]
[WhiteClock "0:00:20"]
[BlackClock "0:01:42"]

1. e4 {[%clk 0:02:58]}  c6 {[%clk 0:02:59]} 2. d4 {[%clk 0:02:57]}  d5 {[%clk 0:02:59]} 3. exd5 {[%clk 0:02:58]}  cxd5 {[%clk 0:03:00]} 4. Bd3 {[%clk 0:02:59]}  Nf6 {[%clk 0:03:01]} 5. c3 {[%clk 0:02:59]}  Nc6 {[%clk 0:03:01]} 6. Bf4 {[%clk 0:02:59]}  Bg4 {[%clk 0:03:01]} 7. Qb3 {[%clk 0:03:00]}  Qb6 {[%clk 0:03:02]} 8. Qxb6 {[%clk 0:02:58]}  axb6 {[%clk 0:03:03]} 9. Nd2 {[%clk 0:02:56]}  e6 {[%clk 0:03:03]} 10. Ngf3 {[%clk 0:02:57]}  Be7 {[%clk 0:03:03]} 11. Ne5 {[%clk 0:02:57]}  Nxe5 {[%clk 0:03:03]} 12. dxe5 {[%clk 0:02:55]}  Nd7 {[%clk 0:03:03]} 13. Bb5 {[%clk 0:02:51]}  Rd8 {[%clk 0:03:01]} 14. c4 {[%clk 0:02:00]}  O-O {[%clk 0:02:48]} 15. cxd5 {[%clk 0:02:00]}  exd5 {[%clk 0:02:49]} 16. O-O {[%clk 0:01:59]}  Nc5 {[%clk 0:02:49]} 17. h3 {[%clk 0:01:49]}  Bh5 {[%clk 0:02:48]} 18. Rfe1 {[%clk 0:01:45]}  Ne6 {[%clk 0:02:49]} 19. Bg3 {[%clk 0:01:43]}  Bb4 {[%clk 0:02:49]} 20. Nb3 {[%clk 0:01:29]}  Bxe1 {[%clk 0:02:48]} 21. Rxe1 {[%clk 0:01:29]}  d4 {[%clk 0:02:48]} 22. f4 {[%clk 0:01:18]}  d3 {[%clk 0:02:47]} 23. f5 {[%clk 0:01:15]}  d2 {[%clk 0:02:44]} 24. Nxd2 {[%clk 0:01:16]}  Rxd2 {[%clk 0:02:43]} 25. fxe6 {[%clk 0:01:17]}  fxe6 {[%clk 0:02:43]} 26. Bc4 {[%clk 0:01:17]}  Bf7 {[%clk 0:02:40]} 27. b4 {[%clk 0:01:11]}  Rc8 {[%clk 0:02:38]} 28. Bb3 {[%clk 0:01:11]}  Rcd8 {[%clk 0:02:35]} 29. Rc1 {[%clk 0:01:09]}  R2d4 {[%clk 0:02:23]} 30. b5 {[%clk 0:01:06]}  h5 {[%clk 0:02:18]} 31. Bf2 {[%clk 0:01:06]}  Re4 {[%clk 0:02:14]} 32. Bxb6 {[%clk 0:01:05]}  Ra8 {[%clk 0:02:06]} 33. Rc7 {[%clk 0:00:59]}  Rxe5 {[%clk 0:02:03]} 34. a4 {[%clk 0:00:52]}  Rd8 {[%clk 0:01:56]} 35. Rxf7 {[%clk 0:00:49]}  Rd3 {[%clk 0:01:51]} 36. Rf3 {[%clk 0:00:41]}  Rxf3 {[%clk 0:01:48]} 37. gxf3 {[%clk 0:00:42]}  h4 {[%clk 0:01:47]} 38. Kf2 {[%clk 0:00:33]}  Kf7 {[%clk 0:01:47]} 39. Bc4 {[%clk 0:00:31]}  g5 {[%clk 0:01:46]} 40. a5 {[%clk 0:00:24]}  Rf5 {[%clk 0:01:42]} 41. a6 {[%clk 0:00:21]}  bxa6 {[%clk 0:01:42]} 42. bxa6 {[%clk 0:00:22]}  Rf4 {[%clk 0:01:43]} 43. a7 {[%clk 0:00:20]}  Rxc4 {[%clk 0:01:42]} 44. a8=Q {[%clk 0:00:20]} 1-0

[Event "November 21 Late 2023"]
[Site "https://www.chess.com"]
[Date "2023.11.21"]
[Round "8"]
[White "Khater, Sherif"]
[Black "Djokic, Mihailo"]
[Result "0-1"]
[Board "44"]
[TimeControl "180+1"]
[WhiteFideId "2034280"]
[BlackFideId "976440"]
[WhiteElo "2520"]
[BlackElo "2265"]
[WhiteTeam "USA"]
[BlackTeam "SRB"]
[WhiteClock "0:01:11"]
[BlackClock "0:02:20"]

1. d4 {[%clk 0:03:00]}  Nf6 {[%clk 0:02:54]} 2. Bg5 {[%clk 0:02:59]}  d5 {[%clk 0:02:54]} 3. Bxf6 {[%clk 0:02:59]}  gxf6 {[%clk 0:02:55]} 4. e3 {[%clk 0:03:00]}  e5 {[%clk 0:02:55]} 5. c4 {[%clk 0:03:00]}  exd4 {[%clk 0:02:55]} 6. Qxd4 {[%clk 0:03:00]}  Nc6 {[%clk 0:02:55]} 7. Qxd5 {[%clk 0:03:00]}  Qxd5 {[%clk 0:02:56]} 8. cxd5 {[%clk 0:03:00]}  Nb4 {[%clk 0:02:56]} 9. Na3 {[%clk 0:02:48]}  Bf5 {[%clk 0:02:55]} 10. Bb5+ {[%clk 0:02:37]}  c6 {[%clk 0:02:55]} 11. dxc6 {[%clk 0:02:37]}  bxc6 {[%clk 0:02:56]} 12. Be2 {[%clk 0:02:28]}  Rg8 {[%clk 0:02:55]} 13. g3 {[%clk 0:02:26]}  O-O-O {[%clk 0:02:55]} 14. Nf3 {[%clk 0:02:25]}  Nd3+ {[%clk 0:02:52]} 15. Bxd3 {[%clk 0:02:20]}  Bxd3 {[%clk 0:02:52]} 16. O-O-O {[%clk 0:02:04]}  Bxa3 {[%clk 0:02:41]} 17. bxa3 {[%clk 0:02:04]}  Be4 {[%clk 0:02:41]} 18. Nd4 {[%clk 0:01:55]}  Bxh1 {[%clk 0:02:37]} 19. Rxh1 {[%clk 0:01:56]}  Rg5 {[%clk 0:02:33]} 20. h4 {[%clk 0:01:48]}  Ra5 {[%clk 0:02:32]} 21. Kb2 {[%clk 0:01:47]}  Kc7 {[%clk 0:02:28]} 22. Rc1 {[%clk 0:01:45]}  Rb8+ {[%clk 0:02:28]} 23. Nb3 {[%clk 0:01:41]}  Rf5 {[%clk 0:02:27]} 24. f4 {[%clk 0:01:41]}  h5 {[%clk 0:02:25]} 25. Kc3 {[%clk 0:01:33]}  Rd5 {[%clk 0:02:24]} 26. Rc2 {[%clk 0:01:26]}  Rg8 {[%clk 0:02:21]} 27. Rg2 {[%clk 0:01:26]}  f5 {[%clk 0:02:21]} 28. Nd4 {[%clk 0:01:24]}  Re8 {[%clk 0:02:20]} 29. Re2 {[%clk 0:01:22]}  Re4 {[%clk 0:02:20]} 30. Kc4 {[%clk 0:01:11]}  Rdxd4+ {[%clk 0:02:20]} 0-1

[Event "November 21 Late 2023"]
[Site "https://www.chess.com"]
[Date "2023.11.21"]
[Round "8"]
[White "Silva Lucena, Cristian"]
[Black "Koksal, Ege"]
[Result "1-0"]
[Board "48"]
[TimeControl "180+1"]
[WhiteFideId "2232588"]
[BlackFideId "6317626"]
[WhiteElo "2248"]
[BlackElo "2230"]
[WhiteTeam "ESP"]
[BlackTeam "TUR"]
[WhiteClock "0:01:07"]
[BlackClock "0:00:00"]

1. e4 {[%clk 0:03:00]}  e5 {[%clk 0:02:51]} 2. Nf3 {[%clk 0:02:59]}  Nc6 {[%clk 0:02:51]} 3. Bc4 {[%clk 0:03:00]}  Bc5 {[%clk 0:02:51]} 4. d4 {[%clk 0:03:01]}  Bxd4 {[%clk 0:02:49]} 5. Nxd4 {[%clk 0:03:01]}  Nxd4 {[%clk 0:02:50]} 6. Be3 {[%clk 0:03:01]}  Ne6 {[%clk 0:02:46]} 7. Bxe6 {[%clk 0:03:01]}  dxe6 {[%clk 0:02:43]} 8. Qg4 {[%clk 0:03:00]}  g6 {[%clk 0:02:06]} 9. Nc3 {[%clk 0:02:59]}  f6 {[%clk 0:01:45]} 10. h4 {[%clk 0:02:55]}  Ne7 {[%clk 0:01:40]} 11. Rd1 {[%clk 0:02:49]}  Bd7 {[%clk 0:01:41]} 12. h5 {[%clk 0:02:44]}  g5 {[%clk 0:01:40]} 13. h6 {[%clk 0:02:34]}  Kf7 {[%clk 0:01:40]} 14. Rh3 {[%clk 0:02:18]}  Ng6 {[%clk 0:01:05]} 15. Bxg5 {[%clk 0:02:18]}  fxg5 {[%clk 0:01:05]} 16. Rhd3 {[%clk 0:02:16]}  Nf8 {[%clk 0:00:55]} 17. Rf3+ {[%clk 0:02:15]}  Kg8 {[%clk 0:00:50]} 18. Rxd7 {[%clk 0:01:42]}  Qxd7 {[%clk 0:00:41]} 19. Nd5 {[%clk 0:01:43]}  Qd8 {[%clk 0:00:04]} 20. Nf6+ {[%clk 0:01:17]}  Kf7 {[%clk 0:00:04]} 21. Nxh7+ {[%clk 0:01:08]}  Ke7 {[%clk 0:00:00]} 22. Qxg5+ {[%clk 0:01:07]} 1-0

[Event "November 21 Late 2023"]
[Site "https://www.chess.com"]
[Date "2023.11.21"]
[Round "8"]
[White "Statham_l3"]
[Black "Ventura Bolet, Maxim"]
[Result "1-0"]
[Board "52"]
[TimeControl "180+1"]
[BlackFideId "22238824"]
[WhiteElo "2592"]
[BlackElo "2227"]
[BlackTeam "ESP"]
[WhiteClock "0:00:06"]
[BlackClock "0:00:03"]

1. e4 {[%clk 0:02:59]}  Nf6 {[%clk 0:03:00]} 2. e5 {[%clk 0:02:57]}  Nd5 {[%clk 0:03:00]} 3. f4 {[%clk 0:02:58]}  d6 {[%clk 0:03:00]} 4. d4 {[%clk 0:02:57]}  c5 {[%clk 0:02:58]} 5. Nf3 {[%clk 0:02:47]}  c4 {[%clk 0:02:56]} 6. Bxc4 {[%clk 0:02:44]}  dxe5 {[%clk 0:02:56]} 7. Nc3 {[%clk 0:02:21]}  Nxc3 {[%clk 0:02:44]} 8. Nxe5 {[%clk 0:02:18]}  Nd5 {[%clk 0:02:12]} 9. Qh5 {[%clk 0:01:38]}  g6 {[%clk 0:01:48]} 10. Qf3 {[%clk 0:00:40]}  e6 {[%clk 0:01:44]} 11. f5 {[%clk 0:00:41]}  gxf5 {[%clk 0:01:41]} 12. Qh5 {[%clk 0:00:35]}  Qc7 {[%clk 0:00:48]} 13. Bg5 {[%clk 0:00:26]}  Nc6 {[%clk 0:00:39]} 14. Bb5 {[%clk 0:00:14]}  Bg7 {[%clk 0:00:22]} 15. Bd8 {[%clk 0:00:10]}  Kxd8 {[%clk 0:00:06]} 16. Nxf7+ {[%clk 0:00:11]}  Ke7 {[%clk 0:00:06]} 17. Nxh8 {[%clk 0:00:10]}  Bxh8 {[%clk 0:00:07]} 18. Qxh7+ {[%clk 0:00:10]}  Kd6 {[%clk 0:00:07]} 19. Qxh8 {[%clk 0:00:11]}  Qa5+ {[%clk 0:00:07]} 20. c3 {[%clk 0:00:08]}  Qxb5 {[%clk 0:00:07]} 21. O-O-O {[%clk 0:00:07]}  a5 {[%clk 0:00:03]} 22. Rhe1 {[%clk 0:00:07]}  a4 {[%clk 0:00:03]} 23. a3 {[%clk 0:00:05]}  Na5 {[%clk 0:00:03]} 24. Qd8+ {[%clk 0:00:04]}  Bd7 {[%clk 0:00:03]} 25. Qxa8 {[%clk 0:00:05]}  Nc4 {[%clk 0:00:02]} 26. Qb8+ {[%clk 0:00:04]}  Ke7 {[%clk 0:00:02]} 27. Re2 {[%clk 0:00:03]}  Nxa3 {[%clk 0:00:02]} 28. Rde1 {[%clk 0:00:03]}  Nc4 {[%clk 0:00:02]} 29. Qh8 {[%clk 0:00:03]}  Nde3 {[%clk 0:00:02]} 30. Qh4+ {[%clk 0:00:03]}  Kd6 {[%clk 0:00:02]} 31. Qf4+ {[%clk 0:00:03]}  Kc6 {[%clk 0:00:02]} 32. Qf3+ {[%clk 0:00:03]}  Kb6 {[%clk 0:00:03]} 33. d5 {[%clk 0:00:02]}  a3 {[%clk 0:00:03]} 34. b4 {[%clk 0:00:02]}  a2 {[%clk 0:00:03]} 35. Rxa2 {[%clk 0:00:02]}  exd5 {[%clk 0:00:03]} 36. Rxe3 {[%clk 0:00:02]}  Nxe3 {[%clk 0:00:03]} 37. Qxe3+ {[%clk 0:00:03]}  Kc7 {[%clk 0:00:03]} 38. Qf4+ {[%clk 0:00:03]}  Kb6 {[%clk 0:00:02]} 39. Ra5 {[%clk 0:00:03]}  Qc4 {[%clk 0:00:02]} 40. Qxc4 {[%clk 0:00:03]}  dxc4 {[%clk 0:00:03]} 41. Rc5 {[%clk 0:00:04]}  Bc6 {[%clk 0:00:02]} 42. Rxc4 {[%clk 0:00:04]}  Bxg2 {[%clk 0:00:03]} 43. Rf4 {[%clk 0:00:04]}  Bh3 {[%clk 0:00:03]} 44. Rf3 {[%clk 0:00:04]}  Bg4 {[%clk 0:00:03]} 45. Rg3 {[%clk 0:00:05]}  Be2 {[%clk 0:00:02]} 46. h3 {[%clk 0:00:05]}  Kc6 {[%clk 0:00:02]} 47. h4 {[%clk 0:00:05]}  Kd6 {[%clk 0:00:03]} 48. Rg5 {[%clk 0:00:05]}  Ke5 {[%clk 0:00:02]} 49. Kd2 {[%clk 0:00:05]}  Bf3 {[%clk 0:00:02]} 50. Ke3 {[%clk 0:00:06]}  Bd1 {[%clk 0:00:02]} 51. h5 {[%clk 0:00:06]}  Kf6 {[%clk 0:00:02]} 52. Kf4 {[%clk 0:00:06]}  Bc2 {[%clk 0:00:02]} 53. h6 {[%clk 0:00:06]}  b5 {[%clk 0:00:01]} 54. h7 {[%clk 0:00:07]}  Be4 {[%clk 0:00:01]} 55. h8=Q+ {[%clk 0:00:08]}  Ke6 {[%clk 0:00:02]} 56. Qe5+ {[%clk 0:00:08]}  Kd7 {[%clk 0:00:02]} 57. Rg7+ {[%clk 0:00:09]}  Kc6 {[%clk 0:00:03]} 58. Qe6# {[%clk 0:00:06]} 1-0

[Event "November 21 Late 2023"]
[Site "https://www.chess.com"]
[Date "2023.11.21"]
[Round "8"]
[White "szachmistrz2500"]
[Black "Shapiro, Viktor"]
[Result "0-1"]
[Board "56"]
[TimeControl "180+1"]
[BlackFideId "4175700"]
[WhiteElo "2438"]
[BlackElo "2084"]
[BlackTeam "RUS"]
[WhiteClock "0:01:44"]
[BlackClock "0:01:45"]

1. Nf3 {[%clk 0:02:55]}  Nf6 {[%clk 0:03:00]} 2. g3 {[%clk 0:02:55]}  g6 {[%clk 0:02:59]} 3. Bg2 {[%clk 0:02:55]}  Bg7 {[%clk 0:03:00]} 4. d3 {[%clk 0:02:56]}  O-O {[%clk 0:03:00]} 5. e4 {[%clk 0:02:56]}  d6 {[%clk 0:03:01]} 6. O-O {[%clk 0:02:55]}  c5 {[%clk 0:03:01]} 7. c3 {[%clk 0:02:56]}  Nc6 {[%clk 0:03:01]} 8. Re1 {[%clk 0:02:55]}  e5 {[%clk 0:03:00]} 9. d4 {[%clk 0:02:52]}  cxd4 {[%clk 0:02:57]} 10. cxd4 {[%clk 0:02:52]}  Bg4 {[%clk 0:02:57]} 11. d5 {[%clk 0:02:32]}  Nd4 {[%clk 0:02:57]} 12. Nc3 {[%clk 0:02:30]}  Rc8 {[%clk 0:02:43]} 13. Qd3 {[%clk 0:02:29]}  Bxf3 {[%clk 0:02:35]} 14. Bxf3 {[%clk 0:02:29]}  b5 {[%clk 0:02:28]} 15. Bd1 {[%clk 0:02:18]}  Qa5 {[%clk 0:02:14]} 16. Be3 {[%clk 0:02:16]}  b4 {[%clk 0:02:11]} 17. Ne2 {[%clk 0:02:15]}  Nf3+ {[%clk 0:02:09]} 18. Kf1 {[%clk 0:02:13]}  Nxe1 {[%clk 0:02:02]} 19. Kxe1 {[%clk 0:02:13]}  Ng4 {[%clk 0:01:58]} 20. Bd2 {[%clk 0:02:09]}  Qb6 {[%clk 0:01:52]} 21. Qf3 {[%clk 0:02:07]}  Nxh2 {[%clk 0:01:47]} 22. Qh1 {[%clk 0:02:06]}  Ng4 {[%clk 0:01:46]} 23. Qf3 {[%clk 0:01:44]}  f5 {[%clk 0:01:45]} 0-1

[Event "November 21 Late 2023"]
[Site "https://www.chess.com"]
[Date "2023.11.21"]
[Round "8"]
[White "Przybylski, Wojciech"]
[Black "Wu, Derek"]
[Result "1-0"]
[Board "64"]
[TimeControl "180+1"]
[WhiteFideId "1117599"]
[BlackFideId "30914558"]
[WhiteElo "2203"]
[BlackElo "2211"]
[WhiteTeam "POL"]
[BlackTeam "USA"]
[WhiteClock "0:00:12"]
[BlackClock "0:00:07"]

1. e4 {[%clk 0:03:00]}  e6 {[%clk 0:02:59]} 2. d4 {[%clk 0:03:00]}  d5 {[%clk 0:03:00]} 3. exd5 {[%clk 0:03:00]}  exd5 {[%clk 0:03:00]} 4. Nf3 {[%clk 0:03:00]}  Bd6 {[%clk 0:03:00]} 5. Bd3 {[%clk 0:03:00]}  Ne7 {[%clk 0:03:00]} 6. O-O {[%clk 0:03:00]}  Bg4 {[%clk 0:03:00]} 7. h3 {[%clk 0:03:00]}  Bh5 {[%clk 0:02:59]} 8. Nbd2 {[%clk 0:03:00]}  Nbc6 {[%clk 0:02:58]} 9. c3 {[%clk 0:02:59]}  Qd7 {[%clk 0:02:56]} 10. Re1 {[%clk 0:02:59]}  O-O-O {[%clk 0:02:55]} 11. Qc2 {[%clk 0:02:58]}  g5 {[%clk 0:02:42]} 12. Ne5 {[%clk 0:02:25]}  Bxe5 {[%clk 0:02:34]} 13. dxe5 {[%clk 0:02:25]}  g4 {[%clk 0:02:30]} 14. h4 {[%clk 0:02:25]}  g3 {[%clk 0:02:27]} 15. fxg3 {[%clk 0:02:24]}  Rhg8 {[%clk 0:02:26]} 16. Nf1 {[%clk 0:02:23]}  Bg6 {[%clk 0:02:24]} 17. Bf4 {[%clk 0:02:18]}  d4 {[%clk 0:02:15]} 18. Bxg6 {[%clk 0:02:04]}  Rxg6 {[%clk 0:02:13]} 19. cxd4 {[%clk 0:02:03]}  Nxd4 {[%clk 0:02:12]} 20. Qf2 {[%clk 0:01:59]}  Nef5 {[%clk 0:01:40]} 21. Rac1 {[%clk 0:01:46]}  Rc6 {[%clk 0:01:09]} 22. Rxc6 {[%clk 0:01:37]}  Qxc6 {[%clk 0:01:10]} 23. Kh2 {[%clk 0:01:34]}  Qe6 {[%clk 0:01:03]} 24. Ne3 {[%clk 0:01:30]}  Kb8 {[%clk 0:00:52]} 25. Nxf5 {[%clk 0:01:27]}  Nxf5 {[%clk 0:00:53]} 26. a3 {[%clk 0:01:23]}  a5 {[%clk 0:00:47]} 27. Qc5 {[%clk 0:01:19]}  Rd5 {[%clk 0:00:44]} 28. Qc3 {[%clk 0:01:14]}  b6 {[%clk 0:00:42]} 29. b4 {[%clk 0:01:11]}  a4 {[%clk 0:00:41]} 30. Rc1 {[%clk 0:01:09]}  Rd7 {[%clk 0:00:36]} 31. Qc2 {[%clk 0:01:08]}  Nd4 {[%clk 0:00:22]} 32. Qxa4 {[%clk 0:00:59]}  Ne2 {[%clk 0:00:20]} 33. Rf1 {[%clk 0:00:48]}  Qg4 {[%clk 0:00:18]} 34. Qc2 {[%clk 0:00:38]}  h5 {[%clk 0:00:16]} 35. Qe4 {[%clk 0:00:33]}  Nc3 {[%clk 0:00:15]} 36. Qf3 {[%clk 0:00:32]}  Qg6 {[%clk 0:00:14]} 37. Bg5 {[%clk 0:00:27]}  Rd3 {[%clk 0:00:13]} 38. Qf5 {[%clk 0:00:27]}  Qxf5 {[%clk 0:00:12]} 39. Rxf5 {[%clk 0:00:27]}  Ne4 {[%clk 0:00:13]} 40. Rxf7 {[%clk 0:00:25]}  Nxg3 {[%clk 0:00:13]} 41. e6 {[%clk 0:00:22]}  Ne4 {[%clk 0:00:11]} 42. e7 {[%clk 0:00:21]}  Nd6 {[%clk 0:00:12]} 43. Bf4 {[%clk 0:00:18]}  Kc8 {[%clk 0:00:09]} 44. Bxd6 {[%clk 0:00:18]}  Kd7 {[%clk 0:00:09]} 45. Bxc7 {[%clk 0:00:14]}  Re3 {[%clk 0:00:09]} 46. Bxb6 {[%clk 0:00:14]}  Re4 {[%clk 0:00:08]} 47. Bc5 {[%clk 0:00:14]}  Kc6 {[%clk 0:00:08]} 48. Rf8 {[%clk 0:00:13]}  Kb7 {[%clk 0:00:06]} 49. e8=Q {[%clk 0:00:13]}  Rxh4+ {[%clk 0:00:06]} 50. Kg1 {[%clk 0:00:13]}  Rc4 {[%clk 0:00:06]} 51. Qa8+ {[%clk 0:00:13]}  Kc7 {[%clk 0:00:07]} 52. Rf7# {[%clk 0:00:12]} 1-0

[Event "November 21 Late 2023"]
[Site "https://www.chess.com"]
[Date "2023.11.21"]
[Round "8"]
[White "BM223344"]
[Black "De La Colina, Nicolas"]
[Result "1/2-1/2"]
[Board "65"]
[TimeControl "180+1"]
[BlackFideId "30946921"]
[WhiteElo "2484"]
[BlackElo "2088"]
[BlackTeam "USA"]
[WhiteClock "0:00:58"]
[BlackClock "0:00:06"]

1. d4 {[%clk 0:03:00]}  f5 {[%clk 0:02:23]} 2. c4 {[%clk 0:03:00]}  Nf6 {[%clk 0:02:21]} 3. Nc3 {[%clk 0:03:00]}  g6 {[%clk 0:02:22]} 4. Nf3 {[%clk 0:03:00]}  Bg7 {[%clk 0:02:22]} 5. e3 {[%clk 0:03:00]}  d6 {[%clk 0:02:22]} 6. Bd3 {[%clk 0:03:01]}  O-O {[%clk 0:02:23]} 7. O-O {[%clk 0:03:00]}  c6 {[%clk 0:02:22]} 8. Re1 {[%clk 0:03:00]}  Qc7 {[%clk 0:02:03]} 9. e4 {[%clk 0:02:58]}  fxe4 {[%clk 0:02:02]} 10. Nxe4 {[%clk 0:02:59]}  e5 {[%clk 0:01:57]} 11. dxe5 {[%clk 0:02:55]}  dxe5 {[%clk 0:01:58]} 12. Nxf6+ {[%clk 0:02:48]}  Bxf6 {[%clk 0:01:55]} 13. Bh6 {[%clk 0:02:43]}  Re8 {[%clk 0:01:53]} 14. Qc2 {[%clk 0:02:43]}  Bg7 {[%clk 0:01:11]} 15. Bxg7 {[%clk 0:02:28]}  Qxg7 {[%clk 0:01:12]} 16. Re2 {[%clk 0:02:28]}  Bg4 {[%clk 0:01:08]} 17. Rae1 {[%clk 0:02:20]}  Bxf3 {[%clk 0:01:07]} 18. gxf3 {[%clk 0:02:21]}  Nd7 {[%clk 0:01:07]} 19. f4 {[%clk 0:02:19]}  Qf6 {[%clk 0:00:55]} 20. fxe5 {[%clk 0:02:19]}  Rxe5 {[%clk 0:00:56]} 21. Be4 {[%clk 0:02:16]}  Rae8 {[%clk 0:00:52]} 22. Bg2 {[%clk 0:02:15]}  Qf4 {[%clk 0:00:44]} 23. Rxe5 {[%clk 0:02:09]}  Rxe5 {[%clk 0:00:45]} 24. Rxe5 {[%clk 0:01:51]}  Nxe5 {[%clk 0:00:45]} 25. Qb3 {[%clk 0:01:52]}  Qxc4 {[%clk 0:00:32]} 26. Qxb7 {[%clk 0:01:44]}  Qc1+ {[%clk 0:00:32]} 27. Bf1 {[%clk 0:01:44]}  Nf3+ {[%clk 0:00:17]} 28. Kg2 {[%clk 0:01:44]}  Ne1+ {[%clk 0:00:18]} 29. Kh1 {[%clk 0:01:38]}  Qf4 {[%clk 0:00:08]} 30. Qxc6 {[%clk 0:01:10]}  Qxf2 {[%clk 0:00:07]} 31. Bc4+ {[%clk 0:01:10]}  Kg7 {[%clk 0:00:06]} 32. Qd7+ {[%clk 0:01:08]}  Kh6 {[%clk 0:00:06]} 33. Qh3+ {[%clk 0:01:08]}  Kg7 {[%clk 0:00:06]} 34. Qd7+ {[%clk 0:01:04]}  Kh6 {[%clk 0:00:06]} 35. Qh3+ {[%clk 0:00:58]}  Kg7 {[%clk 0:00:06]} 36. Qd7+ {[%clk 0:00:58]} 1/2-1/2